bitfinex/quotes_SOLUSD_20240906
["timestamp","ask_amount","ask_price","bid_price","bid_amount"]
[1725605761663,7.6544,130.65,130.62,7.6557]
[1725605761965,7.6536,130.66,130.62,7.6557]
[1725605762136,7.6536,130.66,130.63,7.6551]
[1725605763939,7.6541,130.65,130.62,7.6556]
[1725605764148,27.6547,130.64,130.61,19.1396]
[1725605764350,7.6547,130.64,130.61,19.1396]
[1725605764658,7.6543,130.65,130.61,19.1396]
[1725605764844,20.0,130.64,130.61,26.7956]
[1725605768468,7.6552,130.63,130.59,10.06417666]
[1725605768850,7.6559,130.62,130.59,2.40707666]
[1725605769561,7.6559,130.62,130.58,26.8017]
[1725605770865,7.6559,130.62,130.59,7.6575]
[1725605772954,1.33410874,130.61,130.59,7.6575]
[1725605773364,20.0,130.62,130.59,7.6575]
[1725605774280,27.6558,130.62,130.59,7.6575]
[1725605774766,7.6573,130.6,130.56,26.8072]
[1725605774970,7.6573,130.6,130.56,19.1482]
[1725605775548,27.6575,130.59,130.56,26.8072]
[1725605775750,7.6575,130.59,130.56,19.1482]
[1725605776074,7.6575,130.59,130.54,26.8115]
[1725605776075,20.0,130.58,130.54,26.8115]
[1725605776565,20.0,130.58,130.55,7.6594]
[1725605777942,20.0,130.58,130.56,19.1479]
[1725605778163,20.0,130.6,130.57,7.6587]
[1725605783464,1.33457848,130.59,130.57,7.6587]
[1725605790586,1.33457848,130.59,130.58,7.6581]
[1725605791887,1.33457848,130.59,130.58,9.18952304]
[1725605792055,1.33457848,130.59,130.58,7.6581]
[1725605809196,1.33457848,130.59,130.57,26.8041]
[1725605811599,1.33457848,130.59,130.58,7.6581]
[1725605819202,1.33457848,130.59,130.58,38.64770247]
[1725605819499,7.6535,130.66,130.62,7.6553]
[1725605819671,1.33371302,130.63,130.62,7.6553]
[1725605820096,7.6535,130.66,130.63,7.6551]
[1725605820496,21.33370662,130.65,130.63,7.6551]
[1725605821583,21.33370662,130.65,130.64,7.6546]
[1725605825906,1.33370662,130.65,130.64,7.6546]
[1725605826112,1.33370662,130.65,130.64,9.18533437]
[1725605826609,1.33370662,130.65,130.64,7.6546]
[1725605827485,1.33370662,130.65,130.63,26.7918]
[1725605827881,1.33370662,130.65,130.57,44.8569]
[1725605828084,7.6546,130.64,130.61,7.6559]
[1725605828406,7.6558,130.62,130.58,7.6579]
[1725605829490,7.6558,130.62,130.59,7.6575]
[1725605833311,7.6553,130.63,130.59,7.6575]
[1725605833687,20.0,130.62,130.59,7.6575]
[1725605834207,27.6558,130.62,130.58,7.658]
[1725605834413,7.6565,130.61,130.57,26.8041]
[1725605834606,20.0,130.6,130.57,26.8041]
[1725605837622,20.0,130.6,130.56,7.6593]
[1725605837812,15.5262,130.62,130.56,7.6593]
[1725605837813,20.0,130.61,130.56,7.6593]
[1725605838312,7.6577,130.59,130.55,21.55807121]
[1725605838502,27.6583,130.58,130.54,7.6602]
[1725605840827,1.33440324,130.57,130.54,7.6602]
[1725605841802,8.99310324,130.57,130.54,7.6602]
[1725605842422,8.99310324,130.57,130.52,29.2230393]
[1725605842719,20.0,130.56,130.53,7.6609]
[1725605852526,20.0,130.56,130.54,7.6604]
[1725605852735,21.33440324,130.57,130.53,19.1513]
[1725605853331,20.0,130.57,130.53,19.1513]
[1725605854322,20.0,130.57,130.55,7.6599]
[1725605856023,21.33439043,130.57,130.55,7.6599]
[1725605857730,21.33439043,130.57,130.54,7.6602]
[1725605857929,28.99319043,130.57,130.53,26.812]
[1725605858126,21.33439043,130.57,130.52,7.6614]
[1725605859318,7.6599,130.55,130.52,7.6614]
[1725605860129,7.6599,130.55,130.51,26.8174]
[1725605860329,27.6605,130.54,130.51,26.8174]
[1725605860637,7.6605,130.54,130.51,19.1553]
[1725605860838,7.6612,130.53,130.49,26.8218]
[1725605861019,7.6607,130.54,130.5,7.6627]
[1725605861413,27.6611,130.53,130.49,26.8218]
[1725605863864,20.0,130.53,130.5,19.1556]
[1725605864032,20.0,130.53,130.52,7.6616]
[1725605867346,13.8496,130.56,130.53,7.661]
[1725605867716,20.0,130.55,130.52,7.6613]
[1725605868132,20.0,130.55,130.53,7.661]
[1725605876147,20.0,130.55,130.54,7.6604]
[1725605876324,14.125,130.6,130.56,7.6593]
[1725605876524,27.6575,130.59,130.55,26.8083]
[1725605879245,1.33430451,130.58,130.55,26.8083]
[1725605879449,1.33430451,130.58,130.56,7.6592]
[1725605880531,1.33430451,130.58,130.55,26.8083]
[1725605885951,1.33430451,130.58,130.56,7.6592]
[1725605886133,1.33430451,130.58,130.55,19.1487]
[1725605886645,1.33430451,130.58,130.56,1.5316941]
[1725605887357,1.33430451,130.58,130.57,7.6587]
[1725605888432,1.33430451,130.58,130.56,7.6591]
[1725605890233,1.33430451,130.58,130.57,7.6587]
[1725605890759,1.33430451,130.58,130.57,9.19019901]
[1725605892760,1.33430451,130.58,130.57,9.19020006]
[1725605893437,1.33430451,130.58,130.57,7.6587]
[1725605905269,20.0,130.62,130.59,7.6572]
[1725605908171,1.33393184,130.61,130.59,7.6572]
[1725605919273,1.33393184,130.61,130.6,7.6569]
[1725605920851,7.6542,130.65,130.62,7.6557]
[1725605921696,20.0,130.64,130.62,7.6557]
[1725605922678,21.33370395,130.64,130.62,7.6557]
[1725605923471,1.33370395,130.64,130.62,7.6557]
[1725605923660,1.33370395,130.64,130.63,7.6552]
[1725605928387,42.42777462,130.69,130.66,7.6534]
[1725605928592,1.33327525,130.67,130.66,9.18393307]
[1725605928884,1.33327525,130.67,130.66,9.18393728]
[1725605932591,1.33327525,130.67,130.66,7.6534]
[1725605933899,1.33327525,130.67,130.65,26.7881]
[1725605934074,1.33327525,130.67,130.65,19.1343]
[1725605934275,1.33327525,130.67,130.65,26.7877]
[1725605934585,1.33327525,130.67,130.66,7.6534]
[1725605944369,1.33327525,130.67,130.66,9.18396466]
[1725605949278,1.33327525,130.67,130.66,7.6534]
[1725605957400,1.33327525,130.67,130.65,26.788]
[1725605971511,1.33327525,130.67,130.59,6.6128]
[1725605971817,1.33327525,130.67,130.58,16.4475]
[1725605971818,7.6548,130.64,130.6,26.7988]
[1725605972606,1.33427602,130.63,130.6,26.7988]
[1725605972916,8.98947602,130.63,130.6,26.7988]
[1725605987731,1.33427602,130.63,130.6,26.7988]
[1725605988318,1.33427602,130.63,130.61,7.656]
[1725605991422,8.98967602,130.63,130.6,19.1421]
[1725605992216,8.98967602,130.63,130.6,26.7989]
[1725605992947,7.6559,130.62,130.57,19.1454]
[1725605993111,7.6559,130.62,130.58,7.6576]
[1725605993517,1.33382162,130.61,130.59,7.6574]
[1725605995844,1.33382162,130.61,130.6,26.7993]
[1725606000832,20.0,130.64,130.62,7.6555]
[1725606001032,7.6537,130.66,130.62,7.6555]
[1725606001033,1.33352718,130.63,130.62,7.6555]
[1725606001537,6.2329,130.68,130.65,7.6536]
[1725606001855,7.6535,130.66,130.62,26.7946]
[1725606002137,7.6535,130.66,130.56,44.4194]
[1725606002138,15.6613,130.66,130.61,7.6561]
[1725606002349,15.6613,130.66,130.6,19.1422]
[1725606002918,7.6554,130.63,130.59,7.6573]
[1725606003721,7.6562,130.62,130.58,7.6579]
[1725606003937,7.657,130.6,130.56,7.6589]
[1725606004820,15.6613,130.62,130.54,19.1499]
[1725606005025,65.0,130.61,130.54,19.1499]
[1725606006118,20.0,130.61,130.54,19.1499]
[1725606006350,20.0,130.61,130.57,7.6587]
[1725606006644,20.0,130.61,130.55,1.53172772]
[1725606006645,15.6613,130.62,130.58,20.67624625]
[1725606006818,13.757,130.64,130.59,7.6573]
[1725606007152,6.102,130.64,130.58,26.8027]
[1725606007331,7.6561,130.62,130.58,26.8027]
[1725606007644,7.6568,130.61,130.55,19.1486]
[1725606007829,7.6568,130.61,130.57,7.6587]
[1725606008846,7.656,130.62,130.57,7.6587]
[1725606009144,20.0,130.61,130.57,7.6587]
[1725606009845,20.0,130.61,130.55,19.1486]
[1725606010055,7.6579,130.59,130.55,19.1486]
[1725606010229,27.6582,130.58,130.54,7.6601]
[1725606011633,20.0,130.58,130.54,19.1509]
[1725606011850,27.6573,130.6,130.56,7.6591]
[1725606012051,27.6573,130.6,130.55,7.6597]
[1725606012532,20.0,130.6,130.51,14.38638115]
[1725606012737,20.0,130.6,130.56,19.1473]
[1725606012944,20.0,130.6,130.57,7.6583]
[1725606013966,16.511,130.61,130.58,7.6578]
[1725606017249,16.511,130.64,130.59,7.6571]
[1725606017444,16.511,130.64,130.58,19.1447]
[1725606017445,7.6564,130.61,130.58,19.1447]
[1725606018455,7.6564,130.61,130.57,7.6583]
[1725606018830,7.6564,130.61,130.57,26.805]
[1725606019030,7.656,130.62,130.58,7.6579]
[1725606019235,20.0,130.61,130.58,7.6579]
[1725606020061,20.0,130.61,130.6,7.6569]
[1725606020234,27.6552,130.63,130.59,19.1435]
[1725606020563,7.6568,130.61,130.57,7.6583]
[1725606020874,7.6568,130.61,130.56,19.1468]
[1725606020875,7.657,130.6,130.56,26.8058]
[1725606021033,7.6576,130.59,130.56,19.1468]
[1725606022368,1.33414639,130.58,130.54,7.6603]
[1725606022546,21.33414639,130.58,130.54,7.6603]
[1725606022860,28.99234639,130.58,130.54,7.6603]
[1725606024455,7.6587,130.57,130.53,26.8121]
[1725606028558,28.99254639,130.58,130.53,19.1513]
[1725606028761,21.33414639,130.58,130.55,7.6593]
[1725606029571,28.99224639,130.58,130.55,7.6593]
[1725606030277,28.99224639,130.58,130.54,26.8099]
[1725606031875,7.6587,130.57,130.54,26.8099]
[1725606032050,7.6587,130.57,130.54,19.1497]
[1725606032551,7.6587,130.57,130.48,36.68348115]
[1725606032552,21.33414639,130.58,130.51,19.1541]
[1725606032867,7.6588,130.57,130.53,7.6606]
[1725606033666,27.6594,130.56,130.53,7.6606]
[1725606033872,7.6594,130.56,130.53,7.6606]
[1725606034073,7.6594,130.56,130.52,26.8141]
[1725606036868,7.6594,130.56,130.52,19.1527]
[1725606037469,14.0021,130.57,130.52,19.1527]
[1725606037654,27.6593,130.56,130.52,26.814]
[1725606038045,27.6593,130.56,130.49,26.8199]
[1725606038046,7.661,130.53,130.49,26.8199]
[1725606038250,7.6608,130.54,130.49,26.8199]
[1725606038657,7.6608,130.54,130.5,7.6627]
[1725606042160,7.661,130.53,130.5,7.6627]
[1725606042675,1.33478455,130.52,130.5,7.6627]
[1725606044076,1.33478455,130.52,130.49,26.8201]
[1725606044257,1.33478455,130.52,130.47,19.1614]
[1725606044578,1.33478455,130.52,130.49,7.6633]
[1725606044745,21.33478455,130.52,130.49,7.6633]
[1725606046484,21.33478455,130.52,130.47,38.3216]
[1725606046675,1.33478455,130.52,130.51,7.6622]
[1725606047755,1.33478455,130.52,130.5,26.8196]
[1725606055495,8.74325424,130.54,130.5,26.8196]
[1725606055666,1.33461464,130.52,130.5,26.8196]
[1725606056662,1.33461464,130.52,130.5,19.1569]
[1725606057466,1.33461464,130.52,130.5,26.8194]
[1725606057884,20.0,130.53,130.5,26.8194]
[1725606060174,15.4398,130.55,130.52,7.6615]
[1725606060374,20.0,130.54,130.52,7.6615]
[1725606060763,21.33464672,130.54,130.52,7.6615]
[1725606061794,1.33464672,130.54,130.53,7.661]
[1725606062384,1.33464672,130.54,130.53,9.19297216]
[1725606062691,38.10603404,130.59,130.52,19.1529]
[1725606062692,38.10603404,130.59,130.57,7.6585]
[1725606062898,38.10603404,130.59,130.58,7.6581]
[1725606063399,1.33402652,130.59,130.58,7.6581]
[1725606063772,1.33402652,130.59,130.57,19.1462]
[1725606064880,1.33402652,130.59,130.57,26.8047]
[1725606066671,1.33402652,130.59,130.57,19.1462]
[1725606067004,1.33402652,130.59,130.56,7.6592]
[1725606067372,1.33402652,130.59,130.55,7.6597]
[1725606067591,1.33402652,130.59,130.56,7.659]
[1725606067790,8.99172652,130.59,130.55,7.6596]
[1725606067991,7.6581,130.58,130.54,19.1499]
[1725606068303,7.6589,130.57,130.53,7.6606]
[1725606068473,7.6582,130.58,130.54,7.6604]
[1725606068798,8.99162652,130.59,130.54,7.6604]
[1725606069099,20.0,130.58,130.54,7.6604]
[1725606071097,20.0,130.58,130.55,7.6597]
[1725606071280,20.0,130.58,130.55,19.1494]
[1725606071493,1.33402652,130.59,130.55,26.8091]
[1725606072408,8.99172652,130.59,130.55,26.8091]
[1725606072606,20.0,130.58,130.55,26.8091]
[1725606074208,28.99192652,130.59,130.55,26.8091]
[1725606076105,21.33402652,130.59,130.56,7.6592]
[1725606076294,21.33402652,130.59,130.57,7.6586]
[1725606076295,1.33402652,130.59,130.57,7.6586]
[1725606080110,1.33402652,130.59,130.58,7.6581]
[1725606084609,1.33402652,130.59,130.58,9.18965965]
[1725606084784,31.58696746,130.65,130.61,7.6562]
[1725606084985,31.58696746,130.65,130.6,19.1417]
[1725606085379,31.58696746,130.65,130.61,7.6561]
[1725606085707,7.6555,130.63,130.6,19.1417]
[1725606086521,7.6555,130.63,130.6,26.7986]
[1725606086933,7.6549,130.64,130.6,26.7986]
[1725606087212,65.0,130.63,130.6,26.7986]
[1725606087505,45.0,130.63,130.6,26.7986]
[1725606088007,1.33382921,130.62,130.6,26.7986]
[1725606090399,1.33382921,130.62,130.55,15.2587]
[1725606090582,1.33382921,130.62,130.56,19.1482]
[1725606090583,7.6576,130.59,130.56,19.1482]
[1725606090785,7.6571,130.6,130.56,19.1482]
[1725606090979,65.0,130.59,130.56,19.1482]
[1725606091409,72.6576,130.59,130.56,19.1482]
[1725606093094,72.6576,130.59,130.55,7.6595]
[1725606093788,7.6583,130.58,130.54,7.66]
[1725606094012,45.0,130.57,130.54,7.66]
[1725606094592,27.6578,130.59,130.55,7.6597]
[1725606094894,27.6578,130.59,130.53,57.4553]
[1725606094895,52.6581,130.58,130.54,7.6602]
[1725606097498,7.6594,130.56,130.53,26.8122]
[1725606098393,7.6594,130.56,130.53,19.1514]
[1725606099115,27.6602,130.55,130.51,26.8176]
[1725606100012,27.6602,130.55,130.51,26.8175]
[1725606101114,7.6609,130.54,130.5,7.6626]
[1725606101320,45.0,130.53,130.5,7.6626]
[1725606101897,7.6609,130.54,130.5,7.6626]
[1725606106537,50.0,130.54,130.47,19.1613]
[1725606106832,50.0,130.54,130.47,26.8254]
[1725606106833,7.6625,130.51,130.47,26.8254]
[1725606108135,1.3347604,130.5,130.48,7.6637]
[1725606108340,1.3347604,130.5,130.48,7.6636]
[1725606109742,1.3347604,130.5,130.49,7.6634]
[1725606112316,27.6612,130.53,130.49,7.6634]
[1725606112521,7.6616,130.52,130.49,7.6634]
[1725606112815,7.6624,130.51,130.48,19.1586]
[1725606119762,7.6636,130.49,130.45,26.8292]
[1725606120133,20.0,130.48,130.45,26.8292]
[1725606120429,27.6641,130.48,130.45,26.8292]
[1725606121037,1.3352643,130.47,130.45,26.8292]
[1725606121347,1.3352643,130.47,130.45,19.1636]
[1725606121570,8.9998643,130.47,130.43,42.3554]
[1725606121719,8.9998643,130.47,130.44,7.6663]
[1725606122451,8.9998643,130.47,130.45,7.6655]
[1725606122452,1.3352643,130.47,130.45,7.6655]
[1725606122967,1.3352643,130.47,130.44,7.666]
[1725606123136,7.6655,130.46,130.43,19.1673]
[1725606123841,7.6658,130.45,130.42,7.6672]
[1725606124035,21.3352643,130.47,130.41,7.6679]
[1725606124257,61.5129,130.46,130.4,7.6686]
[1725606124440,7.6667,130.44,130.4,7.6686]
[1725606131467,7.6662,130.45,130.41,7.6679]
[1725606131673,7.6662,130.45,130.41,26.838]
[1725606132162,20.0,130.44,130.41,26.838]
[1725606132469,20.0,130.44,130.41,19.1701]
[1725606132669,20.0,130.45,130.41,19.1701]
[1725606133181,20.0,130.45,130.42,7.6673]
[1725606133963,27.6657,130.45,130.42,7.6673]
[1725606134148,20.0,130.45,130.43,7.6666]
[1725606134349,20.0,130.45,130.42,19.1674]
[1725606134350,20.0,130.46,130.44,7.6663]
[1725606134672,9.0001643,130.47,130.44,7.6663]
[1725606134868,7.6649,130.47,130.44,7.6663]
[1725606135248,7.6641,130.48,130.44,7.6663]
[1725606135446,23.44742019,130.49,130.42,38.3357]
[1725606135447,8.00542019,130.49,130.42,38.3357]
[1725606135668,7.6628,130.5,130.47,7.6641]
[1725606135898,61.23272573,130.53,130.43,66.9643468]
[1725606136163,7.6617,130.52,130.43,66.9643468]
[1725606136601,1.33505709,130.51,130.48,7.6636]
[1725606136753,1.33505709,130.51,130.5,7.6628]
[1725606137549,1.33505709,130.51,130.49,26.8216]
[1725606142380,1.33505709,130.51,130.5,7.6628]
[1725606142761,1.33505709,130.51,130.5,9.19530327]
[1725606142967,1.33505709,130.51,130.5,9.19512854]
[1725606143169,1.33505709,130.51,130.5,7.6628]
[1725606143471,7.6589,130.57,130.54,7.6604]
[1725606143863,1.3344929,130.56,130.54,7.6604]
[1725606145794,1.3344929,130.56,130.54,26.8116]
[1725606146895,1.3344929,130.56,130.55,7.6599]
[1725606148996,1.3344929,130.56,130.54,19.1512]
[1725606148997,1.3344929,130.56,130.54,26.8114]
[1725606149295,1.3344929,130.56,130.51,34.8404]
[1725606149508,1.3344929,130.56,130.53,7.6607]
[1725606150894,1.3344929,130.56,130.52,19.1527]
[1725606151402,21.3344929,130.56,130.52,19.1527]
[1725606151786,28.9939929,130.56,130.52,26.8139]
[1725606154201,7.6605,130.54,130.49,19.1573]
[1725606155104,7.6605,130.54,130.5,7.6624]
[1725606157304,7.6605,130.54,130.51,7.6621]
[1725606158104,20.0,130.53,130.49,19.1573]
[1725606158608,27.6613,130.53,130.49,26.8203]
[1725606160403,20.0,130.53,130.48,7.6637]
[1725606161691,7.662,130.52,130.48,7.6637]
[1725606164095,1.33483262,130.51,130.48,7.6637]
[1725606165487,1.33483262,130.51,130.49,7.6631]
[1725606167190,1.33483262,130.51,130.48,19.1586]
[1725606167191,8.99713262,130.51,130.48,19.1586]
[1725606169288,8.99713262,130.51,130.48,26.8225]
[1725606170401,8.99713262,130.51,130.47,7.6645]
[1725606170402,7.663,130.5,130.47,7.6645]
[1725606171310,8.99723262,130.51,130.47,7.6645]
[1725606172299,7.6632,130.5,130.46,26.8266]
[1725606174007,7.6632,130.5,130.47,7.6644]
[1725606181419,8.99733262,130.51,130.48,7.6638]
[1725606181620,20.0,130.5,130.48,7.6638]
[1725606181993,20.0,130.5,130.46,19.1617]
[1725606182190,7.6631,130.5,130.46,26.8268]
[1725606182420,7.6631,130.5,130.47,7.6645]
[1725606184399,1.33600008,130.49,130.47,7.6645]
[1725606185622,1.33600008,130.49,130.48,26.824]
[1725606186896,7.6595,130.56,130.52,7.6614]
[1725606188303,26.49532539,130.57,130.51,26.8169]
[1725606188810,45.0,130.56,130.51,26.8169]
[1725606189003,7.6604,130.54,130.5,7.6626]
[1725606189221,20.0,130.55,130.49,26.8217]
[1725606190521,7.6617,130.52,130.49,26.8217]
[1725606190901,7.6612,130.53,130.49,26.8217]
[1725606191223,20.0,130.52,130.49,26.8217]
[1725606191402,20.0,130.52,130.44,35.3548]
[1725606191596,7.663,130.5,130.46,7.6648]
[1725606193205,7.663,130.5,130.46,26.8277]
[1725606193935,7.6635,130.49,130.46,26.8277]
[1725606195424,7.663,130.5,130.46,26.8277]
[1725606195610,20.0,130.49,130.46,26.8277]
[1725606201245,7.6642,130.48,130.44,26.832]
[1725606201527,20.0,130.47,130.44,26.832]
[1725606202937,7.6642,130.48,130.44,26.832]
[1725606203129,20.0,130.47,130.44,26.832]
[1725606204336,27.6646,130.47,130.44,26.832]
[1725606207639,27.6646,130.47,130.43,7.6666]
[1725606207640,7.6652,130.46,130.43,7.6666]
[1725606207844,20.0,130.47,130.43,7.6666]
[1725606208136,7.6648,130.47,130.43,7.6666]
[1725606208333,7.6652,130.46,130.42,26.8357]
[1725606208637,7.6652,130.46,130.42,19.1686]
[1725606209336,1.33627426,130.45,130.43,7.6669]
[1725606209634,7.6637,130.49,130.45,7.6653]
[1725606209818,20.0,130.48,130.45,7.6653]
[1725606210010,20.0,130.48,130.45,9.19828576]
[1725606210537,30.75569785,130.52,130.48,7.6636]
[1725606210836,7.6612,130.53,130.49,7.6634]
[1725606211011,7.6616,130.52,130.48,26.8234]
[1725606211338,7.6612,130.53,130.49,7.6633]
[1725606211832,7.6612,130.53,130.49,9.19579554]
[1725606212007,7.6612,130.53,130.49,7.6633]
[1725606212216,20.0,130.52,130.49,7.6633]
[1725606212726,21.33555634,130.52,130.48,26.8235]
[1725606216666,28.99725634,130.52,130.48,19.1597]
[1725606216846,21.33555634,130.52,130.47,7.6643]
[1725606217020,1.33555634,130.52,130.46,19.1629]
[1725606217223,7.6633,130.5,130.46,19.1629]
[1725606217435,27.6634,130.49,130.46,19.1629]
[1725606217726,7.6634,130.49,130.46,19.1629]
[1725606217930,7.6634,130.49,130.42,59.9167]
[1725606217931,7.6634,130.49,130.44,26.8315]
[1725606218340,7.6634,130.49,130.45,7.6657]
[1725606220527,7.6634,130.49,130.44,19.1657]
[1725606220528,7.664,130.48,130.44,19.1657]
[1725606220825,27.664,130.48,130.44,19.1657]
[1725606221839,27.664,130.48,130.44,26.8319]
[1725606222344,27.664,130.48,130.44,19.1657]
[1725606222936,27.664,130.48,130.44,26.8319]
[1725606228134,7.663,130.5,130.45,1.53309788]
[1725606228339,7.663,130.5,130.45,19.163]
[1725606228639,20.0,130.49,130.45,19.163]
[1725606229053,20.0,130.49,130.46,7.6648]
[1725606229228,20.0,130.5,130.46,7.6648]
[1725606229434,20.0,130.5,130.46,19.1615]
[1725606229658,8.99755634,130.52,130.46,19.1615]
[1725606229659,20.0,130.51,130.46,19.1615]
[1725606230059,27.6622,130.51,130.47,7.6643]
[1725606230552,20.0,130.51,130.45,38.3272]
[1725606230731,1.33555634,130.52,130.49,7.6631]
[1725606231054,44.58773884,130.54,130.49,7.6631]
[1725606231055,7.6611,130.53,130.49,7.6631]
[1725606231232,7.6617,130.52,130.48,26.8225]
[1725606231437,1.33566095,130.51,130.45,57.4912]
[1725606232245,8.99826095,130.51,130.46,7.6647]
[1725606232750,7.6628,130.5,130.46,7.6647]
[1725606237233,8.99816095,130.51,130.46,7.6647]
[1725606237430,20.0,130.5,130.48,7.6637]
[1725606237941,20.0,130.5,130.47,26.8248]
[1725606238148,28.99796095,130.51,130.47,26.8248]
[1725606245745,7.6629,130.5,130.46,7.6647]
[1725606251745,1.33582459,130.49,130.46,7.6647]
[1725606253968,1.33582459,130.49,130.47,7.6645]
[1725606254468,1.33582459,130.49,130.46,7.6647]
[1725606254671,7.6655,130.46,130.42,7.6672]
[1725606254965,7.6653,130.46,130.42,7.6674]
[1725606259174,7.6657,130.45,130.42,7.6674]
[1725606259471,7.6664,130.44,130.41,19.1701]
[1725606260588,7.6661,130.45,130.41,26.8381]
[1725606260767,20.0,130.44,130.41,26.8381]
[1725606262874,21.6883,130.47,130.42,7.6675]
[1725606262875,7.6653,130.46,130.42,7.6675]
[1725606263091,20.0,130.45,130.42,7.6675]
[1725606264071,20.0,130.45,130.41,19.1701]
[1725606264072,20.0,130.45,130.43,7.6669]
[1725606264262,7.6646,130.47,130.44,7.6657]
[1725606264462,20.0,130.46,130.44,7.6657]
[1725606264659,20.0,130.47,130.44,26.8314]
[1725606265556,27.6646,130.47,130.44,26.8314]
[1725606267260,20.0,130.47,130.45,7.6656]
[1725606269278,27.6646,130.47,130.44,26.8319]
[1725606269460,27.6648,130.47,130.43,7.6666]
[1725606271581,27.6648,130.47,130.44,7.6662]
[1725606272068,1.3362751,130.46,130.44,7.6662]
[1725606275480,1.3362751,130.46,130.43,7.6666]
[1725606275863,9.0016751,130.46,130.43,7.6666]
[1725606276169,9.0016751,130.46,130.42,26.8347]
[1725606277768,9.0016751,130.46,130.43,7.6669]
[1725606285566,1.3362751,130.46,130.44,7.6663]
[1725606286482,1.3362751,130.46,130.45,7.6657]
[1725606286982,20.0,130.47,130.45,7.6657]
[1725606289071,21.4618,130.5,130.44,1.53306061]
[1725606289277,15.3871,130.5,130.44,1.53306061]
[1725606289463,20.0,130.49,130.46,26.8278]
[1725606289885,21.33603591,130.49,130.46,26.8278]
[1725606290785,28.99953591,130.49,130.46,26.8278]
[1725606290983,21.33603591,130.49,130.46,26.8278]
[1725606296297,21.33603591,130.49,130.47,7.6644]
[1725606298099,21.33603591,130.49,130.46,26.8277]
[1725606298494,28.99943591,130.49,130.46,26.8277]
[1725606300899,21.33603591,130.49,130.46,26.8277]
[1725606302198,21.33603591,130.49,130.47,7.6645]
[1725606304875,21.33603591,130.49,130.46,26.8275]
[1725606306302,21.33603591,130.49,130.47,19.1602]
[1725606306480,1.33603591,130.49,130.47,26.8246]
[1725606306674,27.6626,130.51,130.47,26.8246]
[1725606309497,1.33583439,130.5,130.47,26.8246]
[1725606310292,8.99883439,130.5,130.47,19.1602]
[1725606310500,20.0,130.49,130.44,7.6661]
[1725606310696,20.0,130.49,130.39,55.0354138]
[1725606310697,7.6652,130.46,130.39,55.0354138]
[1725606310997,116.7583,130.48,130.39,0.8420138]
[1725606311203,39.1617,130.47,130.4,19.1704]
[1725606311391,7.667,130.43,130.4,19.1704]
[1725606316113,7.6681,130.41,130.39,0.8420138]
[1725606316408,7.6687,130.4,130.39,0.8420138]
[1725606316614,27.6687,130.4,130.39,0.8420138]
[1725606316912,20.0,130.4,130.39,0.8420138]
[1725606317286,16.5612,130.44,130.39,0.8420138]
[1725606317615,16.5612,130.44,130.39,8.5109138]
[1725606317616,7.6673,130.43,130.39,8.5109138]
[1725606319304,20.0,130.42,130.39,8.5109138]
[1725606320789,7.6666,130.44,130.4,7.6685]
[1725606320991,8.01786498,130.46,130.4,19.171]
[1725606321217,20.0,130.45,130.4,19.171]
[1725606321603,7.6661,130.45,130.41,7.6679]
[1725606321806,20.0,130.44,130.41,7.6679]
[1725606321999,7.6653,130.46,130.42,7.6674]
[1725606323592,20.0,130.45,130.42,7.6674]
[1725606327202,7.6647,130.47,130.43,7.6665]
[1725606327406,7.6643,130.48,130.41,38.3395]
[1725606327724,8.99883439,130.5,130.46,7.6649]
[1725606327900,7.6635,130.49,130.45,9.198362]
[1725606328097,7.6635,130.49,130.45,9.19836269]